[Event "Early-Titled-Tuesday-Blitz-October-10-2023"]
[Site "Chess.com"]
[Date "2023.10.10"]
[Round "5"]
[White "vladoboch"]
[Black "NicolaiMaxime"]
[Result "0-1"]
[WhiteElo "2456"]
[BlackElo "2597"]
[TimeControl "180+1"]
[EndTime "8:52:34 PDT"]
[Termination "NicolaiMaxime won by resignation"]

1. e4 {[%clk 0:03:00.9]} 1... c5 {[%clk 0:03:00]} 2. Nf3 {[%clk 0:03:01]} 2...
Nc6 {[%clk 0:03:00.1]} 3. Bb5 {[%clk 0:03:00.4]} 3... Nf6 {[%clk 0:02:59.9]} 4.
e5 {[%clk 0:02:57.2]} 4... Ng4 {[%clk 0:03:00.1]} 5. Qe2 {[%clk 0:02:51.4]} 5...
Qc7 {[%clk 0:02:58.9]} 6. Bxc6 {[%clk 0:02:48.1]} 6... dxc6 {[%clk 0:02:59.8]}
7. h3 {[%clk 0:02:47.7]} 7... Nh6 {[%clk 0:03:00]} 8. g4 {[%clk 0:02:46.4]} 8...
g6 {[%clk 0:02:59.3]} 9. d3 {[%clk 0:02:45.5]} 9... Bg7 {[%clk 0:02:59.3]} 10.
Nc3 {[%clk 0:02:44.3]} 10... O-O {[%clk 0:02:58.2]} 11. O-O {[%clk 0:02:44.2]}
11... f5 {[%clk 0:02:43.4]} 12. g5 {[%clk 0:02:40.6]} 12... Nf7 {[%clk
0:02:41.8]} 13. Bf4 {[%clk 0:02:24]} 13... Be6 {[%clk 0:02:40.9]} 14. Qe3 {[%clk
0:02:18.2]} 14... b6 {[%clk 0:02:38.9]} 15. Ne2 {[%clk 0:02:16.9]} 15... Rfd8
{[%clk 0:02:35.2]} 16. Bh2 {[%clk 0:02:16.7]} 16... Bd5 {[%clk 0:02:17.6]} 17.
e6 {[%clk 0:02:06.2]} 17... Nd6 {[%clk 0:02:17.4]} 18. Ne5 {[%clk 0:02:00.7]}
18... f4 {[%clk 0:01:58.6]} 19. Nxf4 {[%clk 0:01:55]} 19... Nf5 {[%clk
0:01:57.2]} 20. Nxd5 {[%clk 0:01:49]} 20... Rxd5 {[%clk 0:01:51.1]} 21. Ng4
{[%clk 0:01:44.9]} 21... Nxe3 {[%clk 0:01:46.6]} 22. Bxc7 {[%clk 0:01:44]} 22...
Nxf1 {[%clk 0:01:46.5]} 23. Kxf1 {[%clk 0:01:40]} 23... Rxg5 {[%clk 0:01:45.8]}
24. c3 {[%clk 0:01:36.5]} 24... Rc8 {[%clk 0:01:41.9]} 25. Bf4 {[%clk
0:01:34.1]} 25... Rf5 {[%clk 0:01:41.7]} 26. Bg3 {[%clk 0:01:27.7]} 26... Rcf8
{[%clk 0:01:41.1]} 27. Re1 {[%clk 0:01:25.9]} 27... Rf3 {[%clk 0:01:38.3]} 28.
Re3 {[%clk 0:01:14]} 28... h5 {[%clk 0:01:26.8]} 29. Rxf3 {[%clk 0:01:13.3]}
29... Rxf3 {[%clk 0:01:27.6]} 30. Ne3 {[%clk 0:01:12.1]} 30... Rf6 {[%clk
0:01:27.5]} 31. Bb8 {[%clk 0:01:05]} 31... a6 {[%clk 0:01:21.6]} 32. Ba7 {[%clk
0:01:04.7]} 32... b5 {[%clk 0:01:19.8]} 33. Bxc5 {[%clk 0:01:05.1]} 33... Rxe6
{[%clk 0:01:20.3]} 34. d4 {[%clk 0:01:04.4]} 34... Bh6 {[%clk 0:01:19.2]} 35. d5
{[%clk 0:01:02]} 35... cxd5 {[%clk 0:01:16.4]} 36. Nxd5 {[%clk 0:00:54.7]} 36...
Re5 {[%clk 0:01:16.6]} 37. Nxe7+ {[%clk 0:00:50.8]} 37... Kf7 {[%clk 0:01:16.6]}
0-1

[Event "Early-Titled-Tuesday-Blitz-October-10-2023"]
[Site "Chess.com"]
[Date "2023.10.10"]
[Round "5"]
[White "koncheto"]
[Black "Cecile-Haussernot"]
[Result "0-1"]
[WhiteElo "2516"]
[BlackElo "2337"]
[TimeControl "180+1"]
[EndTime "8:52:36 PDT"]
[Termination "Cecile-Haussernot won on time"]

1. e4 {[%clk 0:03:00.9]} 1... c5 {[%clk 0:02:56.7]} 2. Nf3 {[%clk 0:03:00.5]}
2... d6 {[%clk 0:02:55]} 3. d4 {[%clk 0:03:00.9]} 3... cxd4 {[%clk 0:02:53.6]}
4. Nxd4 {[%clk 0:03:01.8]} 4... Nf6 {[%clk 0:02:52.6]} 5. f3 {[%clk 0:03:02]}
5... e5 {[%clk 0:02:49.8]} 6. Nb3 {[%clk 0:03:01.8]} 6... a5 {[%clk 0:02:44.9]}
7. a4 {[%clk 0:02:46.7]} 7... Nc6 {[%clk 0:02:34.6]} 8. c4 {[%clk 0:02:45.9]}
8... Be7 {[%clk 0:02:34.1]} 9. Nc3 {[%clk 0:02:45.9]} 9... O-O {[%clk
0:02:33.7]} 10. Be3 {[%clk 0:02:45.5]} 10... Be6 {[%clk 0:02:32.2]} 11. Be2
{[%clk 0:02:42.7]} 11... Nb4 {[%clk 0:02:27.6]} 12. Qd2 {[%clk 0:02:41.7]} 12...
Rc8 {[%clk 0:02:26.7]} 13. Nd5 {[%clk 0:02:41.8]} 13... Nfxd5 {[%clk 0:02:21.8]}
14. exd5 {[%clk 0:02:21.8]} 14... Bf5 {[%clk 0:02:21.1]} 15. Rc1 {[%clk
0:02:14]} 15... Na2 {[%clk 0:02:12.4]} 16. Ra1 {[%clk 0:02:12.9]} 16... Nb4
{[%clk 0:02:13.1]} 17. O-O {[%clk 0:01:22.6]} 17... Bc2 {[%clk 0:02:09.1]} 18.
Nc1 {[%clk 0:01:14.9]} 18... f5 {[%clk 0:02:07.5]} 19. b3 {[%clk 0:00:59]} 19...
f4 {[%clk 0:02:02.9]} 20. Bf2 {[%clk 0:00:57.1]} 20... e4 {[%clk 0:01:59.6]} 21.
fxe4 {[%clk 0:00:51.8]} 21... Bxe4 {[%clk 0:01:56.6]} 22. Nd3 {[%clk 0:00:34.9]}
22... f3 {[%clk 0:01:55.3]} 23. gxf3 {[%clk 0:00:30.4]} 23... Bg5 {[%clk
0:01:38.5]} 24. f4 {[%clk 0:00:08.9]} 24... Nxd3 {[%clk 0:01:38.2]} 25. Bxd3
{[%clk 0:00:08.3]} 25... Bxf4 {[%clk 0:01:38.2]} 26. Qe2 {[%clk 0:00:02.7]}
26... Qg5+ {[%clk 0:01:30]} 27. Bg3 {[%clk 0:00:03.2]} 27... Be3+ {[%clk
0:01:29.7]} 28. Rf2 {[%clk 0:00:01.9]} 28... Rxf2 {[%clk 0:01:28.7]} 0-1

[Event "Early-Titled-Tuesday-Blitz-October-10-2023"]
[Site "Chess.com"]
[Date "2023.10.10"]
[Round "5"]
[White "Duhless"]
[Black "Andrei_Skvortsov"]
[Result "1-0"]
[WhiteElo "2937"]
[BlackElo "2690"]
[TimeControl "180+1"]
[EndTime "8:52:39 PDT"]
[Termination "Duhless won by resignation"]

1. d4 {[%clk 0:03:00.9]} 1... g6 {[%clk 0:02:56.8]} 2. e4 {[%clk 0:02:57.8]}
2... Bg7 {[%clk 0:02:57.2]} 3. Nc3 {[%clk 0:02:58.5]} 3... d5 {[%clk 0:02:56.1]}
4. Nf3 {[%clk 0:02:59.1]} 4... dxe4 {[%clk 0:02:52]} 5. Nxe4 {[%clk 0:02:59]}
5... Nf6 {[%clk 0:02:52.7]} 6. Bd3 {[%clk 0:02:55.6]} 6... Nbd7 {[%clk
0:02:51.1]} 7. O-O {[%clk 0:02:53.1]} 7... Nxe4 {[%clk 0:02:51.1]} 8. Bxe4
{[%clk 0:02:53.1]} 8... Nf6 {[%clk 0:02:51.8]} 9. Bd3 {[%clk 0:02:53.1]} 9... c6
{[%clk 0:02:49.2]} 10. h3 {[%clk 0:02:50.7]} 10... a5 {[%clk 0:02:46.6]} 11. Re1
{[%clk 0:02:49.4]} 11... O-O {[%clk 0:02:46.4]} 12. Bg5 {[%clk 0:02:47.2]} 12...
Be6 {[%clk 0:02:40.1]} 13. Rxe6 {[%clk 0:02:40.1]} 13... fxe6 {[%clk 0:02:40]}
14. Qe2 {[%clk 0:02:40.8]} 14... Qd6 {[%clk 0:02:36.2]} 15. Re1 {[%clk
0:02:38.5]} 15... Nd5 {[%clk 0:02:12.9]} 16. c3 {[%clk 0:02:35.4]} 16... Nf4
{[%clk 0:01:54.3]} 17. Bxf4 {[%clk 0:02:34]} 17... Rxf4 {[%clk 0:01:55.2]} 18.
g3 {[%clk 0:01:36.4]} 18... Rf6 {[%clk 0:01:51.9]} 19. Ng5 {[%clk 0:01:35]}
19... Qd5 {[%clk 0:00:23.2]} 20. Ne4 {[%clk 0:01:03.5]} 20... Qxa2 {[%clk
0:00:10.2]} 21. Bc4 {[%clk 0:01:01.1]} 21... Qa4 {[%clk 0:00:10.3]} 22. Nc5
{[%clk 0:00:56.9]} 1-0

[Event "Early-Titled-Tuesday-Blitz-October-10-2023"]
[Site "Chess.com"]
[Date "2023.10.10"]
[Round "5"]
[White "TomLiu777"]
[Black "Alenzer"]
[Result "0-1"]
[WhiteElo "2341"]
[BlackElo "2124"]
[TimeControl "180+1"]
[EndTime "8:52:39 PDT"]
[Termination "Alenzer won by checkmate"]

1. e4 {[%clk 0:02:50.1]} 1... c5 {[%clk 0:02:59.7]} 2. Nf3 {[%clk 0:02:48.4]}
2... e6 {[%clk 0:02:59.4]} 3. d4 {[%clk 0:02:48.3]} 3... cxd4 {[%clk 0:03:00]}
4. Nxd4 {[%clk 0:02:48.8]} 4... Nf6 {[%clk 0:03:00.4]} 5. Nc3 {[%clk 0:02:47.5]}
5... Nc6 {[%clk 0:03:00.6]} 6. Be2 {[%clk 0:02:46.7]} 6... Bb4 {[%clk
0:03:00.3]} 7. Nxc6 {[%clk 0:02:45.4]} 7... bxc6 {[%clk 0:03:00.3]} 8. Qd4
{[%clk 0:02:44.7]} 8... c5 {[%clk 0:02:59.9]} 9. Qe5 {[%clk 0:02:39]} 9... d6
{[%clk 0:02:58]} 10. Qg3 {[%clk 0:02:39]} 10... Nxe4 {[%clk 0:02:39]} 11. Qxg7
{[%clk 0:02:37.4]} 11... Qf6 {[%clk 0:02:18.5]} 12. Qxf6 {[%clk 0:02:30.8]}
12... Nxf6 {[%clk 0:02:18.4]} 13. Bd2 {[%clk 0:02:29.3]} 13... Bb7 {[%clk
0:02:15.1]} 14. Bb5+ {[%clk 0:02:26.4]} 14... Ke7 {[%clk 0:02:13.9]} 15. O-O
{[%clk 0:02:23.5]} 15... Rhg8 {[%clk 0:02:12.9]} 16. g3 {[%clk 0:02:22.7]} 16...
Bxc3 {[%clk 0:01:53.6]} 17. Bxc3 {[%clk 0:02:21]} 17... Ne4 {[%clk 0:01:54.1]}
18. h4 {[%clk 0:02:04.9]} 18... Nxc3 {[%clk 0:01:46.9]} 19. bxc3 {[%clk
0:02:03.6]} 19... f5 {[%clk 0:01:35.1]} 20. Rfe1 {[%clk 0:02:00]} 20... f4
{[%clk 0:01:33.1]} 21. Kh2 {[%clk 0:01:50.8]} 21... fxg3+ {[%clk 0:01:31.4]} 22.
fxg3 {[%clk 0:01:50.9]} 22... Raf8 {[%clk 0:01:25.2]} 23. Re2 {[%clk 0:01:43.5]}
23... Rf3 {[%clk 0:01:21.7]} 24. Rae1 {[%clk 0:01:40.2]} 24... e5 {[%clk
0:01:20.4]} 25. Re3 {[%clk 0:01:27.4]} 25... Rgxg3 {[%clk 0:01:18.2]} 26. Rxf3
{[%clk 0:01:26.1]} 26... Rxf3 {[%clk 0:01:18.3]} 27. Rg1 {[%clk 0:01:26.9]}
27... Rf2+ {[%clk 0:01:14.9]} 28. Kh3 {[%clk 0:01:25]} 28... Bc8+ {[%clk
0:01:07.3]} 29. Kg3 {[%clk 0:01:24.2]} 29... Rxc2 {[%clk 0:01:04.4]} 30. Kf3
{[%clk 0:01:23.4]} 30... Rxc3+ {[%clk 0:01:00]} 31. Ke4 {[%clk 0:01:24.3]} 31...
Kf6 {[%clk 0:00:42.7]} 32. Rf1+ {[%clk 0:01:16.6]} 32... Ke6 {[%clk 0:00:40.3]}
33. Be2 {[%clk 0:01:12.1]} 33... d5# {[%clk 0:00:40.2]} 0-1

[Event "Early-Titled-Tuesday-Blitz-October-10-2023"]
[Site "Chess.com"]
[Date "2023.10.10"]
[Round "5"]
[White "JimDiGrease"]
[Black "forevery0ung"]
[Result "1-0"]
[WhiteElo "2923"]
[BlackElo "2681"]
[TimeControl "180+1"]
[EndTime "8:52:41 PDT"]
[Termination "JimDiGrease won on time"]

1. d4 {[%clk 0:03:00.9]} 1... d5 {[%clk 0:02:57.9]} 2. c4 {[%clk 0:02:59.5]}
2... dxc4 {[%clk 0:02:57.2]} 3. e3 {[%clk 0:02:59.3]} 3... Nf6 {[%clk
0:02:55.5]} 4. Bxc4 {[%clk 0:02:59.7]} 4... a6 {[%clk 0:02:54.9]} 5. Nf3 {[%clk
0:02:57.4]} 5... e6 {[%clk 0:02:55.4]} 6. O-O {[%clk 0:02:55.8]} 6... c5 {[%clk
0:02:56.1]} 7. a4 {[%clk 0:02:49.8]} 7... cxd4 {[%clk 0:02:53.8]} 8. exd4 {[%clk
0:02:48.9]} 8... Nc6 {[%clk 0:02:53.8]} 9. Nc3 {[%clk 0:02:39.2]} 9... Be7
{[%clk 0:02:54.2]} 10. Re1 {[%clk 0:02:29.7]} 10... O-O {[%clk 0:02:53.9]} 11.
Bf4 {[%clk 0:02:22.4]} 11... Nb4 {[%clk 0:02:48.9]} 12. Ne5 {[%clk 0:02:21.7]}
12... Bd7 {[%clk 0:02:47.5]} 13. Re3 {[%clk 0:02:04]} 13... Rc8 {[%clk
0:02:16.3]} 14. Rg3 {[%clk 0:01:55.6]} 14... Nc6 {[%clk 0:02:16.2]} 15. Bh6
{[%clk 0:01:42.4]} 15... Ne8 {[%clk 0:01:24.1]} 16. Bd3 {[%clk 0:01:11.1]} 16...
Kh8 {[%clk 0:00:36]} 17. Qh5 {[%clk 0:00:58.5]} 17... g6 {[%clk 0:00:10.3]} 18.
Bxf8 {[%clk 0:00:58.1]} 1-0

[Event "Early-Titled-Tuesday-Blitz-October-10-2023"]
[Site "Chess.com"]
[Date "2023.10.10"]
[Round "5"]
[White "secretsuperstar7"]
[Black "cristiano78"]
[Result "1-0"]
[WhiteElo "2416"]
[BlackElo "2245"]
[TimeControl "180+1"]
[EndTime "8:52:41 PDT"]
[Termination "secretsuperstar7 won by checkmate"]

1. c4 {[%clk 0:03:00.9]} 1... Nf6 {[%clk 0:02:59]} 2. Nc3 {[%clk 0:03:00.2]}
2... g6 {[%clk 0:02:57.7]} 3. g3 {[%clk 0:03:00]} 3... d6 {[%clk 0:02:58.1]} 4.
Bg2 {[%clk 0:03:00.3]} 4... Bg7 {[%clk 0:02:58.7]} 5. e4 {[%clk 0:03:00.5]} 5...
O-O {[%clk 0:02:59.3]} 6. Nge2 {[%clk 0:03:00.7]} 6... c5 {[%clk 0:02:59]} 7.
O-O {[%clk 0:03:00.9]} 7... Nc6 {[%clk 0:02:59]} 8. d3 {[%clk 0:03:01.1]} 8...
Ne8 {[%clk 0:02:59.4]} 9. a3 {[%clk 0:03:01.2]} 9... Nc7 {[%clk 0:02:59.7]} 10.
Rb1 {[%clk 0:03:01.3]} 10... a5 {[%clk 0:02:57.5]} 11. Be3 {[%clk 0:02:59.5]}
11... Ne6 {[%clk 0:02:57.2]} 12. Nd5 {[%clk 0:02:57.6]} 12... Ned4 {[%clk
0:02:56.9]} 13. b4 {[%clk 0:02:45.8]} 13... axb4 {[%clk 0:02:56]} 14. axb4
{[%clk 0:02:45.5]} 14... Nxe2+ {[%clk 0:02:52.9]} 15. Qxe2 {[%clk 0:02:44.4]}
15... e6 {[%clk 0:02:52.9]} 16. b5 {[%clk 0:02:42.5]} 16... exd5 {[%clk
0:02:49.5]} 17. bxc6 {[%clk 0:02:42.1]} 17... bxc6 {[%clk 0:02:49.3]} 18. exd5
{[%clk 0:02:41.2]} 18... cxd5 {[%clk 0:02:48.1]} 19. Bxd5 {[%clk 0:02:40.8]}
19... Ra3 {[%clk 0:02:45.7]} 20. Rb8 {[%clk 0:02:37.5]} 20... Qe7 {[%clk
0:02:40.7]} 21. Rfb1 {[%clk 0:02:32.3]} 21... Bf5 {[%clk 0:02:39.2]} 22. Rxf8+
{[%clk 0:02:20.4]} 22... Bxf8 {[%clk 0:02:32.6]} 23. Rb8 {[%clk 0:02:17.3]}
23... Bxd3 {[%clk 0:02:20.7]} 24. Qb2 {[%clk 0:02:16.5]} 24... Ra7 {[%clk
0:01:20.4]} 25. Qc3 {[%clk 0:02:12.7]} 25... Qc7 {[%clk 0:00:55.5]} 26. Rxf8+
{[%clk 0:01:57.1]} 26... Kxf8 {[%clk 0:00:53.6]} 27. Bh6+ {[%clk 0:01:57.1]}
27... Ke7 {[%clk 0:00:50.6]} 28. Qxd3 {[%clk 0:01:55.4]} 28... Ra1+ {[%clk
0:00:33.5]} 29. Kg2 {[%clk 0:01:54.7]} 29... Qa5 {[%clk 0:00:34]} 30. Qe4+
{[%clk 0:01:50.8]} 30... Kd7 {[%clk 0:00:32.5]} 31. Bxf7 {[%clk 0:01:45.7]}
31... Kc7 {[%clk 0:00:10.5]} 32. Qe7+ {[%clk 0:01:43.7]} 32... Kb8 {[%clk
0:00:10.7]} 33. Qxd6+ {[%clk 0:01:42.9]} 33... Ka7 {[%clk 0:00:11.1]} 34. Qd7+
{[%clk 0:01:40.7]} 34... Ka6 {[%clk 0:00:11.4]} 35. Qc8+ {[%clk 0:01:39.5]}
35... Ka7 {[%clk 0:00:11.4]} 36. Bd5 {[%clk 0:01:34.7]} 36... Kb6 {[%clk
0:00:10.2]} 37. Qb7# {[%clk 0:01:33.3]} 1-0

[Event "Early-Titled-Tuesday-Blitz-October-10-2023"]
[Site "Chess.com"]
[Date "2023.10.10"]
[Round "5"]
[White "Fh2411"]
[Black "JohnnyAnto"]
[Result "1-0"]
[WhiteElo "2564"]
[BlackElo "2422"]
[TimeControl "180+1"]
[EndTime "8:52:44 PDT"]
[Termination "Fh2411 won by resignation"]

1. d4 {[%clk 0:02:51.6]} 1... Nf6 {[%clk 0:02:57.6]} 2. c4 {[%clk 0:02:49.9]}
2... e6 {[%clk 0:02:57.9]} 3. Nf3 {[%clk 0:02:49.1]} 3... b6 {[%clk 0:02:57.8]}
4. g3 {[%clk 0:02:49]} 4... Ba6 {[%clk 0:02:57.9]} 5. b3 {[%clk 0:02:47.9]} 5...
Bb7 {[%clk 0:02:58.3]} 6. Bg2 {[%clk 0:02:47.7]} 6... Bb4+ {[%clk 0:02:59.2]} 7.
Bd2 {[%clk 0:02:47.5]} 7... c5 {[%clk 0:02:59.9]} 8. O-O {[%clk 0:02:46.1]} 8...
O-O {[%clk 0:02:59.7]} 9. Bc3 {[%clk 0:02:37.6]} 9... Qe7 {[%clk 0:02:57.2]} 10.
d5 {[%clk 0:02:25.1]} 10... exd5 {[%clk 0:02:55.4]} 11. Nh4 {[%clk 0:02:07.3]}
11... Ne4 {[%clk 0:02:42.3]} 12. Bxb4 {[%clk 0:01:46.5]} 12... cxb4 {[%clk
0:02:39.8]} 13. cxd5 {[%clk 0:01:45.5]} 13... d6 {[%clk 0:02:31.4]} 14. Qd4
{[%clk 0:01:40.8]} 14... f5 {[%clk 0:02:16]} 15. Qxb4 {[%clk 0:01:34.8]} 15...
Qf6 {[%clk 0:02:10.6]} 16. Na3 {[%clk 0:01:26.2]} 16... Na6 {[%clk 0:02:05.4]}
17. Qe1 {[%clk 0:01:12.3]} 17... Rfe8 {[%clk 0:02:02]} 18. Nb5 {[%clk
0:00:51.4]} 18... Bxd5 {[%clk 0:01:53.4]} 19. Rd1 {[%clk 0:00:49.1]} 19... Qe6
{[%clk 0:00:32.4]} 20. Nf3 {[%clk 0:00:41.1]} 20... Nac5 {[%clk 0:00:26]} 21.
Nc7 {[%clk 0:00:39.8]} 21... Qf6 {[%clk 0:00:25.3]} 22. Nxd5 {[%clk 0:00:39.5]}
1-0

[Event "Early-Titled-Tuesday-Blitz-October-10-2023"]
[Site "Chess.com"]
[Date "2023.10.10"]
[Round "5"]
[White "Aswathchess"]
[Black "arenal72"]
[Result "1-0"]
[WhiteElo "2628"]
[BlackElo "2418"]
[TimeControl "180+1"]
[EndTime "8:52:46 PDT"]
[Termination "Aswathchess won on time"]

1. e4 {[%clk 0:03:00.9]} 1... Nc6 {[%clk 0:02:57.2]} 2. Nf3 {[%clk 0:02:59]}
2... d6 {[%clk 0:02:55.1]} 3. d4 {[%clk 0:02:58]} 3... Nf6 {[%clk 0:02:55.2]} 4.
Nc3 {[%clk 0:02:57.2]} 4... g6 {[%clk 0:02:55.2]} 5. Bc4 {[%clk 0:02:55.4]} 5...
Bg7 {[%clk 0:02:53.4]} 6. h3 {[%clk 0:02:54.8]} 6... O-O {[%clk 0:02:48.7]} 7.
Be3 {[%clk 0:02:54.2]} 7... Nxe4 {[%clk 0:02:47.6]} 8. Nxe4 {[%clk 0:02:50.2]}
8... d5 {[%clk 0:02:46.1]} 9. Bd3 {[%clk 0:02:50.2]} 9... dxe4 {[%clk
0:02:46.4]} 10. Bxe4 {[%clk 0:02:51.1]} 10... Qd6 {[%clk 0:02:42.7]} 11. O-O
{[%clk 0:02:49.7]} 11... e6 {[%clk 0:02:27.3]} 12. c4 {[%clk 0:02:48.2]} 12...
Ne7 {[%clk 0:02:23.3]} 13. c5 {[%clk 0:02:47]} 13... Qd8 {[%clk 0:02:17.7]} 14.
Bg5 {[%clk 0:02:42]} 14... f6 {[%clk 0:02:11.2]} 15. Bf4 {[%clk 0:02:41.1]}
15... Nd5 {[%clk 0:02:09.7]} 16. Bh2 {[%clk 0:02:40.7]} 16... b6 {[%clk
0:02:00.8]} 17. Rc1 {[%clk 0:02:35.8]} 17... Rf7 {[%clk 0:01:50.4]} 18. Qb3
{[%clk 0:02:32.7]} 18... Bb7 {[%clk 0:01:46.7]} 19. Rfe1 {[%clk 0:02:29.8]}
19... a5 {[%clk 0:01:33.3]} 20. Bd3 {[%clk 0:02:20.2]} 20... Qd7 {[%clk
0:01:25.3]} 21. c6 {[%clk 0:01:58.5]} 21... Bxc6 {[%clk 0:01:22.1]} 22. Rxc6
{[%clk 0:01:59]} 22... Qxc6 {[%clk 0:01:21.1]} 23. Bb5 {[%clk 0:01:59.1]} 23...
Qb7 {[%clk 0:01:16.9]} 24. Rxe6 {[%clk 0:01:59]} 24... Nb4 {[%clk 0:00:22.6]}
25. Re7 {[%clk 0:01:40]} 25... Rf8 {[%clk 0:00:20.2]} 26. Bc4 {[%clk 0:01:38.9]}
26... Qc6 {[%clk 0:00:08.5]} 27. Bxf7+ {[%clk 0:01:38.4]} 27... Kh8 {[%clk
0:00:08.3]} 28. Qc4 {[%clk 0:01:35.6]} 28... Qa4 {[%clk 0:00:05.1]} 29. Bxc7
{[%clk 0:01:31.9]} 29... Bh6 {[%clk 0:00:03]} 30. Qe6 {[%clk 0:01:28.9]} 30...
Qd1+ {[%clk 0:00:02.1]} 31. Kh2 {[%clk 0:01:28.3]} 31... Bg7 {[%clk 0:00:01.8]}
32. Re8 {[%clk 0:01:27.9]} 1-0

[Event "Early-Titled-Tuesday-Blitz-October-10-2023"]
[Site "Chess.com"]
[Date "2023.10.10"]
[Round "5"]
[White "YouShallNotPass001"]
[Black "Ariadna_Atreides"]
[Result "1-0"]
[WhiteElo "2392"]
[BlackElo "2200"]
[TimeControl "180+1"]
[EndTime "8:52:47 PDT"]
[Termination "YouShallNotPass001 won on time"]

1. Nf3 {[%clk 0:03:00.9]} 1... Nf6 {[%clk 0:02:51.8]} 2. e3 {[%clk 0:03:01.8]}
2... e6 {[%clk 0:02:49.4]} 3. Be2 {[%clk 0:03:02.1]} 3... b6 {[%clk 0:02:48.5]}
4. O-O {[%clk 0:03:03]} 4... Bb7 {[%clk 0:02:48.8]} 5. c4 {[%clk 0:03:02.4]}
5... c5 {[%clk 0:02:45.4]} 6. b3 {[%clk 0:03:02.3]} 6... Be7 {[%clk 0:02:44.8]}
7. Bb2 {[%clk 0:03:02.8]} 7... O-O {[%clk 0:02:45.4]} 8. d3 {[%clk 0:03:03.2]}
8... d6 {[%clk 0:02:45.2]} 9. Nbd2 {[%clk 0:03:03.6]} 9... h6 {[%clk 0:02:35.1]}
10. a3 {[%clk 0:03:03.6]} 10... Nh7 {[%clk 0:02:31.4]} 11. b4 {[%clk 0:03:01.7]}
11... Bf6 {[%clk 0:02:31.1]} 12. d4 {[%clk 0:03:01.3]} 12... Nd7 {[%clk
0:02:27.9]} 13. Rc1 {[%clk 0:02:39.7]} 13... Rc8 {[%clk 0:02:26.5]} 14. Qa4
{[%clk 0:02:38]} 14... a6 {[%clk 0:02:24.3]} 15. e4 {[%clk 0:02:31.6]} 15... Ng5
{[%clk 0:02:19.1]} 16. Bd3 {[%clk 0:02:28.2]} 16... Nxf3+ {[%clk 0:01:51.4]} 17.
Nxf3 {[%clk 0:02:29.1]} 17... cxd4 {[%clk 0:01:42.3]} 18. Nxd4 {[%clk
0:02:18.8]} 18... Ne5 {[%clk 0:01:42.3]} 19. Qb3 {[%clk 0:02:15.2]} 19... Nxd3
{[%clk 0:01:39.7]} 20. Qxd3 {[%clk 0:02:16.1]} 20... d5 {[%clk 0:01:29.5]} 21.
exd5 {[%clk 0:02:17]} 21... exd5 {[%clk 0:01:29.1]} 22. c5 {[%clk 0:02:17.2]}
22... bxc5 {[%clk 0:01:27.9]} 23. Rxc5 {[%clk 0:02:15]} 23... Qd6 {[%clk
0:01:11.9]} 24. Rfc1 {[%clk 0:02:13.3]} 24... Qf4 {[%clk 0:01:06.4]} 25. g3
{[%clk 0:02:11.5]} 25... Qg4 {[%clk 0:00:59.1]} 26. Rc7 {[%clk 0:01:59.7]} 26...
Rxc7 {[%clk 0:00:54.5]} 27. Rxc7 {[%clk 0:02:00.6]} 27... Bc8 {[%clk 0:00:54.5]}
28. Bc3 {[%clk 0:01:42.6]} 28... Re8 {[%clk 0:00:52.8]} 29. Rc5 {[%clk 0:01:30]}
29... Bxd4 {[%clk 0:00:37.9]} 30. Qxd4 {[%clk 0:01:30.9]} 30... Re1+ {[%clk
0:00:33]} 31. Kg2 {[%clk 0:01:30.6]} 31... Qh3+ {[%clk 0:00:33]} 32. Kf3 {[%clk
0:01:30.7]} 32... f6 {[%clk 0:00:03.8]} 33. Bxe1 {[%clk 0:01:28.1]} 33... Bf5
{[%clk 0:00:01.5]} 34. Qxd5+ {[%clk 0:01:26.9]} 34... Kh7 {[%clk 0:00:01.5]} 35.
Qxf5+ {[%clk 0:01:26.9]} 1-0

[Event "Early-Titled-Tuesday-Blitz-October-10-2023"]
[Site "Chess.com"]
[Date "2023.10.10"]
[Round "5"]
[White "Zhigalko_Sergei"]
[Black "Iskusnyh"]
[Result "1-0"]
[WhiteElo "2937"]
[BlackElo "2592"]
[TimeControl "180+1"]
[EndTime "8:52:50 PDT"]
[Termination "Zhigalko_Sergei won by resignation"]

1. e4 {[%clk 0:03:00.9]} 1... e6 {[%clk 0:02:34.9]} 2. d4 {[%clk 0:03:01]} 2...
d5 {[%clk 0:02:34.6]} 3. e5 {[%clk 0:03:01.7]} 3... c5 {[%clk 0:02:33.2]} 4. c3
{[%clk 0:03:02.1]} 4... Nc6 {[%clk 0:02:30.9]} 5. Nf3 {[%clk 0:03:02.6]} 5...
Nge7 {[%clk 0:02:30.8]} 6. Na3 {[%clk 0:03:02.7]} 6... Bd7 {[%clk 0:02:26.9]} 7.
Nc2 {[%clk 0:02:59.3]} 7... Qa5 {[%clk 0:02:24.4]} 8. dxc5 {[%clk 0:02:54.9]}
8... Ng6 {[%clk 0:02:18.4]} 9. b4 {[%clk 0:02:53.1]} 9... Qc7 {[%clk 0:02:15.7]}
10. Be2 {[%clk 0:02:51.2]} 10... Be7 {[%clk 0:02:14.9]} 11. O-O {[%clk
0:02:51.2]} 11... O-O {[%clk 0:02:13.4]} 12. Re1 {[%clk 0:02:48]} 12... Ncxe5
{[%clk 0:02:09.5]} 13. Nxe5 {[%clk 0:02:48.9]} 13... Nxe5 {[%clk 0:02:09]} 14.
Bf4 {[%clk 0:02:33.6]} 14... Nf3+ {[%clk 0:01:59.3]} 15. Bxf3 {[%clk 0:02:33.9]}
15... Qxf4 {[%clk 0:01:59.8]} 16. Bxd5 {[%clk 0:02:34.5]} 16... Rad8 {[%clk
0:01:25.2]} 17. Bxb7 {[%clk 0:02:18]} 17... Bc6 {[%clk 0:01:15.7]} 18. Bxc6
{[%clk 0:02:13.3]} 18... Rxd1 {[%clk 0:01:14.4]} 19. Raxd1 {[%clk 0:02:14.2]}
19... Bf6 {[%clk 0:01:10.7]} 20. Nd4 {[%clk 0:02:06.4]} 20... Rd8 {[%clk
0:01:08.4]} 21. g3 {[%clk 0:02:05.2]} 21... Qc7 {[%clk 0:01:07.6]} 22. Bf3
{[%clk 0:01:54.1]} 22... g6 {[%clk 0:01:07.1]} 23. Nb5 {[%clk 0:01:40.2]} 23...
Rxd1 {[%clk 0:01:04.4]} 24. Rxd1 {[%clk 0:01:36.9]} 24... Qe5 {[%clk 0:01:03.7]}
25. c6 {[%clk 0:01:01.3]} 25... Qxb5 {[%clk 0:00:15.5]} 26. c7 {[%clk
0:01:01.3]} 1-0